lending/lending_fUSD_20260222
["ID","MTS","AMOUNT","RATE_DAILY","PERIOD"]
[406346094,1771771846568,-100299.0,0.00045,60]
[406346095,1771771846578,-1204.27,0.00045,30]
[406346096,1771771846588,-200.0,0.00045,7]
[406346097,1771771846598,-182.60301976,0.00045028,30]
[406346098,1771771846609,-182.60301976,0.00045074,30]
[406346099,1771771846619,-360.37105782,0.000451,120]
[406346100,1771771846629,-182.60301976,0.0004512,30]
[406346101,1771771846639,-1000.0,0.00045157,30]
[406346102,1771771846650,-182.60301976,0.00045166,30]
[406346104,1771771846659,-150.0,0.000452,31]
[406346105,1771771846669,-160.6,0.000452,87]
[406346106,1771771846687,-150.0,0.000452,120]
[406346107,1771771846708,-182.60301976,0.00045211,30]
[406346108,1771771846718,-166.17458137,0.00045215,2]
[406346109,1771771846727,-166.17458136,0.00045215,2]
[406346110,1771771846738,-584.65637397,0.00045215,19]
[406346111,1771771846748,-286.86023113,0.00045215,2]
[406346112,1771771846757,-173.48884425,0.00045215,2]
[406346113,1771771846768,-166.17458136,0.00045215,2]
[406346114,1771771846778,-226.73826614,0.00045216,2]
[406346115,1771771846787,-55514.3581696,0.00045238,2]
[406346116,1771771846797,-48498.0810884,0.00045238,2]
[406346117,1771771846807,-1973.2027602,0.00045238,2]
[406346118,1771771846817,-151.0,0.00045239,2]
[406346119,1771771846827,-151.0,0.00045239,2]
[406346121,1771771846837,-151.0,0.00045239,2]
[406346123,1771771846847,-151.0,0.00045239,2]
[406346125,1771771846856,-151.0,0.00045239,2]
[406346127,1771771846866,-151.0,0.00045239,2]
[406346128,1771771846876,-151.0,0.00045239,2]
[406346131,1771771846886,-151.0,0.00045239,2]
[406346134,1771771846897,-151.0,0.00045239,2]
[406346135,1771771846906,-182.60301976,0.00045257,30]
[406346137,1771771846916,-800.0,0.00045266,17]
[406346139,1771771846926,-800.0,0.00045266,17]
[406346140,1771771846935,-800.0,0.00045266,17]
[406346142,1771771846946,-800.0,0.00045266,17]
[406346143,1771771846956,-800.0,0.00045266,17]
[406346144,1771771846966,-800.0,0.00045266,17]
[406346145,1771771846975,-800.0,0.00045266,17]
[406346146,1771771846985,-408.16029173,0.00045266,17]
[406346147,1771771846995,-800.0,0.00045266,17]
[406346148,1771771847005,-800.0,0.00045266,17]
[406346149,1771771847015,-800.0,0.00045266,17]
[406346150,1771771847025,-800.0,0.00045266,17]
[406346151,1771771847034,-800.0,0.00045266,17]
[406346152,1771771847044,-800.0,0.00045266,17]
[406346153,1771771847054,-800.0,0.00045266,17]
[406346154,1771771847064,-800.0,0.00045266,17]
[406346155,1771771847075,-800.0,0.00045266,33]
[406346156,1771771847084,-150.43385006,0.00045266,2]
[406346157,1771771847094,-151.0,0.00045266,120]
[406346158,1771771847105,-151.0,0.00045266,120]
[406346159,1771771847117,-151.0,0.00045266,120]
[406346160,1771771847127,-220.78276103,0.00045266,120]
[406346161,1771771847139,-2000.0,0.00045289,120]
[406346162,1771771847150,-500.0,0.00045296,30]
[406346163,1771771847160,-500.0,0.00045296,30]
[406346164,1771771847169,-500.0,0.00045296,30]
[406346165,1771771847179,-500.0,0.00045296,30]
[406346166,1771771847191,-500.0,0.00045296,30]
[406346167,1771771847202,-500.0,0.00045296,30]
[406346168,1771771847212,-500.0,0.00045296,30]
[406346169,1771771847222,-315.63431139,0.00045296,30]
[406346170,1771771847232,-157.08507417,0.00045297,30]
[406346171,1771771847243,-157.08507417,0.00045297,30]
[406346172,1771771847253,-157.08507417,0.00045297,30]
[406346173,1771771847263,-157.08507417,0.00045297,30]
[406346174,1771771847277,-151.0,0.00045297,30]
[406346175,1771771847287,-211.14,0.000453,14]
[406346176,1771771847297,-206.0,0.000453,10]
[406346177,1771771847306,-196.33,0.000453,30]
[406346178,1771771847317,-150.93,0.000453,14]
[406346179,1771771847327,-183.59,0.000453,14]
[406346180,1771771847338,-2000.0,0.000453,7]
[406346181,1771771847348,-1106.0,0.00045303,30]
[406346182,1771771847358,-182.60301976,0.00045303,30]
[406346183,1771771847369,-162.13913337,0.00045303,30]
[406346184,1771771847379,-160.34671197,0.00045303,30]
[406346185,1771771847388,-153.64621027,0.00045303,30]
[406346186,1771771847398,-172.19484242,0.00045303,30]
[406346187,1771771847409,-173.30542123,0.00045303,30]
[406346188,1771771847418,-266.06542345,0.00045303,30]
[406346189,1771771847428,-160.87185473,0.00045303,30]
[406346190,1771771847438,-156.22892871,0.00045303,30]
[406346191,1771771847448,-153.52668918,0.00045303,30]
[406346192,1771771847458,-158.55890031,0.00045303,30]
[406346193,1771771847468,-541.03,0.00045306,60]
[406346194,1771771847478,-541.03,0.00045306,60]
[406346195,1771771847488,-541.03,0.00045306,60]
[406346196,1771771847498,-541.03,0.00045306,60]
[406346197,1771771847509,-541.03,0.00045306,60]
[406346198,1771771847519,-541.03,0.00045306,60]
[406346199,1771771847529,-541.03,0.00045306,60]
[406346200,1771771847539,-541.03,0.00045306,60]
[406346201,1771771847550,-541.11439009,0.00045306,60]
[406346202,1771771847560,-196.35857164,0.00045306,7]
[406346203,1771771847570,-151.0,0.0004531,120]
[406346204,1771771847580,-151.0,0.00045312,120]
[406346205,1771771847590,-309.02112,0.00045313,7]
[406346206,1771771847600,-309.02112,0.00045313,7]
[406346207,1771771847610,-309.02112,0.00045313,7]
[406346208,1771771847623,-309.02112,0.00045313,7]
[406346209,1771771847633,-151.0,0.00045313,120]
[406346210,1771771847643,-151.0,0.00045313,31]
[406346211,1771771847654,-300.0,0.00045314,30]
[406346212,1771771847666,-50000.0,0.00045314,64]
[406346213,1771771847677,-50000.0,0.00045314,67]
[406346214,1771771847689,-50000.0,0.00045314,66]
[406346215,1771771847860,-50000.0,0.00045314,68]
[406346216,1771771847871,-50000.0,0.00045314,69]
[406346217,1771771847881,-50000.0,0.00045314,70]
[406346218,1771771847891,-49000.0,0.00045314,71]
[406346219,1771771847902,-403.93571535,0.00045314,57]
[406346220,1771771847912,-44174.27588287,0.00045315,10]
[406346221,1771771848017,-3217.38391182,0.00045315,10]
[406346222,1771771848029,-41283.23016624,0.00045315,10]
[406346223,1771771848040,-919.2895716,0.00045315,10]
[406346224,1771771848052,-2394.40941108,0.00045315,10]
[406346225,1771771848063,-1917.51448678,0.00045315,10]
[406346226,1771771848136,-499.2143832,0.00017499,2]
[406346227,1771771848146,-499.21438319,0.00023042,2]
[406346228,1771771848156,-499.21438319,0.00028585,2]
[406346229,1771771848165,-920.0,0.00031533,2]
[406346230,1771771848175,-499.21438319,0.00034129,2]
[406346231,1771771848185,-111.18595178,0.00034533,2]
[406346232,1771771848198,-808.81404822,0.00034533,2]
[406346233,1771771848208,-300.93550866,0.00040789,2]
[406346234,1771771848219,-3443.16368822,0.00044283,15]
[406346235,1771771848228,-150.0,0.000444,120]
[406346236,1771771848239,-191.974451,0.00045313,31]
[406346237,1771771848249,-5156046.30590795,0.00045315,10]
[406346238,1771771848270,-920.0,0.00037533,2]
[406346239,1771771848283,-499.21438319,0.00039672,2]
[406346240,1771771848292,-875.89332379,0.00045315,10]
[406346241,1771771848367,-399.99997503,0.00040533,2]
[406346242,1771771848379,-520.00002497,0.00040533,2]
[406346243,1771771848388,-772.296,0.00043533,2]
[406346244,1771771848398,-1113.55,0.00045,30]
[406346245,1771771848407,-179.48,0.00045,30]
[406346246,1771771848417,-499.21438319,0.00045215,2]
[406346247,1771771848427,-19246.99424815,0.00045315,10]
[406346248,1771771848439,-302062.16110708,0.00045315,10]
[406346249,1771771848450,-2007.28279994,0.00045315,10]
[406346250,1771771848461,-2224.48609083,0.00045315,10]
[406346251,1771771848473,-2679.15726496,0.00045315,10]
[406346252,1771771848488,-200.0,0.00019082,2]
[406346253,1771771848498,-10544.92165457,0.00045315,10]
[406346254,1771771848509,-2247.8262585,0.00045315,10]
[406346255,1771771868799,275.79675041,0.000175,120]
[406346256,1771772096670,208.27,0.00014,2]
[406346258,1771772733262,1000.0,0.00014,2]
[406346259,1771772754219,500.0,0.000135,2]
[406346260,1771772849908,500.0,0.00013101,2]
[406346261,1771772850392,713.22320765,0.00013101,2]
[406346262,1771772850643,500.0,0.00013101,2]
[406346280,1771773031298,-300.0,0.000166,6]
[406346282,1771773031308,-600.0,0.00016602,2]
[406346283,1771773031317,-250.0,0.00016604,2]
[406346285,1771773031326,-197.91,0.00016609,2]
[406346287,1771773031366,-525.79675041,0.00016609,2]
[406346302,1771773031668,-418.649199,0.00016609,2]
[406346308,1771773037713,-2097.64405059,0.00016609,2]
[406346309,1771773037725,-250.0,0.00016663,2]
[406346310,1771773037735,-651.803999,0.00016694,7]
[406346311,1771773037749,-600.0,0.000167,6]
[406346312,1771773037759,-163.46,0.00016712,2]
[406346313,1771773037770,-1000.0,0.000168,6]
[406346314,1771773037779,-1300.0,0.000169,6]
[406346315,1771773037789,-1200.0,0.00017046,2]
[406346316,1771773037799,-1481.78,0.00017047,2]
[406346317,1771773037809,-500.25,0.00017048,2]
[406346318,1771773037819,-3514.336,0.0001705,2]
[406346319,1771773037829,-364.298,0.0001705,2]
[406346320,1771773037839,-191.2401541,0.00017197,2]
[406346321,1771773037850,-173.48884425,0.00017197,2]
[406346322,1771773037860,-1414.24437927,0.00017198,2]
[406346323,1771773037871,-164.43552296,0.00017198,2]
[406346324,1771773037881,-151.0,0.00017294,2]
[406346325,1771773037891,-151.0,0.00017294,2]
[406346326,1771773037902,-151.0,0.00017294,2]
[406346327,1771773037914,-271.71189272,0.00017296,2]
[406346328,1771773037924,-500.0,0.00017296,2]
[406346329,1771773037935,-500.0,0.00017296,2]
[406346330,1771773037944,-593.63550877,0.00017296,2]
[406346331,1771773037954,-500.0,0.00017296,2]
[406346332,1771773037963,-516.10612246,0.00017296,2]
[406346333,1771773037972,-563.14702534,0.00017296,2]
[406346334,1771773037982,-500.0,0.00017296,2]
[406346335,1771773037991,-500.0,0.00017296,2]
[406346336,1771773038001,-408.35013263,0.00017296,2]
[406346337,1771773038011,-500.0,0.00017296,2]
[406346338,1771773038020,-564.68927118,0.00017296,2]
[406346339,1771773038030,-500.0,0.00017296,2]
[406346340,1771773038040,-500.0,0.00017296,2]
[406346341,1771773038050,-404.38214481,0.00017296,2]
[406346342,1771773038059,-500.0,0.00017296,2]
[406346343,1771773038069,-500.0,0.00017296,2]
[406346344,1771773038078,-500.0,0.00017296,2]
[406346345,1771773038088,-263.7555946,0.00017296,2]
[406346346,1771773038098,-500.0,0.00017296,2]
[406346347,1771773038107,-500.0,0.00017296,2]
[406346349,1771773038117,-500.0,0.00017296,2]
[406346350,1771773038127,-387.87539634,0.00017296,2]
[406346351,1771773038137,-500.0,0.00017296,2]
[406346352,1771773038147,-500.0,0.00017296,2]
[406346353,1771773038157,-500.0,0.00017296,2]
[406346354,1771773038167,-500.0,0.00017296,2]
[406346355,1771773038177,-500.0,0.00017296,2]
[406346356,1771773038187,-500.0,0.00017296,2]
[406346357,1771773038197,-500.0,0.00017296,2]
[406346358,1771773038208,-500.0,0.00017296,2]
[406346359,1771773038217,-500.0,0.00017296,2]
[406346360,1771773038227,-500.0,0.00017296,2]
[406346361,1771773038237,-500.0,0.00017296,2]
[406346362,1771773038247,-500.0,0.00017296,2]
[406346363,1771773038257,-500.0,0.00017296,2]
[406346364,1771773038267,-500.0,0.00017296,2]
[406346365,1771773038276,-500.0,0.00017296,2]
[406346366,1771773038287,-500.0,0.00017296,2]
[406346367,1771773038298,-500.0,0.00017296,2]
[406346368,1771773038308,-500.0,0.00017296,2]
[406346369,1771773038319,-500.0,0.00017296,2]
[406346370,1771773038329,-500.0,0.00017296,2]
[406346371,1771773038339,-500.0,0.00017296,2]
[406346372,1771773038349,-500.0,0.00017296,2]
[406346373,1771773038361,-500.0,0.00017296,2]
[406346374,1771773038371,-364.40141211,0.00017296,2]
[406346375,1771773038382,-500.0,0.00017296,2]
[406346376,1771773038392,-500.0,0.00017296,2]
[406346377,1771773038402,-500.0,0.00017296,2]
[406346378,1771773038412,-500.0,0.00017296,2]
[406346379,1771773038422,-500.0,0.00017296,2]
[406346380,1771773038433,-500.0,0.00017296,2]
[406346381,1771773038443,-500.0,0.00017296,2]
[406346382,1771773038453,-500.0,0.00017296,2]
[406346383,1771773038463,-500.0,0.00017296,2]
[406346384,1771773038473,-3500000.0,0.00017297,2]
[406346385,1771773038482,-487.0,0.00017297,2]
[406346386,1771773038492,-487.0,0.00017297,2]
[406346387,1771773038501,-487.0,0.00017297,2]
[406346388,1771773038511,-487.0,0.00017297,2]
[406346389,1771773038520,-487.0,0.00017297,2]
[406346390,1771773038530,-487.0,0.00017297,2]
[406346391,1771773038539,-487.0,0.00017297,2]
[406346392,1771773038549,-487.0,0.00017297,2]
[406346393,1771773038558,-487.0,0.00017297,2]
[406346394,1771773038568,-547.56,0.00017297,2]
[406346395,1771773038577,-2500.0,0.00017298,2]
[406346396,1771773038587,-11563.0972,0.00017298,2]
[406346397,1771773038597,-667.77696947,0.00017298,2]
[406346398,1771773038606,-151.0,0.00017387,2]
[406346399,1771773038616,-151.0,0.00017387,2]
[406346400,1771773038626,-151.0,0.00017387,2]
[406346401,1771773038636,-151.0,0.00017387,2]
[406346402,1771773038645,-151.0,0.00017387,2]
[406346403,1771773038655,-151.0,0.00017387,2]
[406346404,1771773038666,-151.0,0.00017387,2]
[406346405,1771773038675,-151.0,0.00017387,2]
[406346406,1771773038685,-151.0,0.00017387,2]
[406346407,1771773038698,-151.0,0.00017387,2]
[406346408,1771773038709,-151.0,0.00017387,2]
[406346409,1771773038719,-151.0,0.00017387,2]
[406346410,1771773038728,-151.0,0.00017387,2]
[406346411,1771773038739,-151.0,0.00017387,2]
[406346412,1771773038749,-151.0,0.00017387,2]
[406346413,1771773038759,-151.0,0.00017387,2]
[406346414,1771773038769,-151.0,0.00017387,2]
[406346415,1771773038780,-151.0,0.00017387,2]
[406346416,1771773038790,-151.0,0.00017387,2]
[406346417,1771773038800,-151.0,0.00017387,2]
[406346418,1771773038810,-151.0,0.00017387,2]
[406346419,1771773038825,-151.0,0.00017387,2]
[406346420,1771773038835,-151.0,0.00017387,2]
[406346421,1771773038846,-151.0,0.00017387,2]
[406346422,1771773038856,-151.0,0.00017387,2]
[406346423,1771773038866,-151.0,0.00017387,2]
[406346424,1771773038875,-151.0,0.00017387,2]
[406346425,1771773038885,-151.0,0.00017387,2]
[406346426,1771773038895,-236.4035099,0.00017387,2]
[406346427,1771773038904,-3266.93465427,0.00017397,2]
[406346428,1771773038914,-718.8125,0.00017398,2]
[406346429,1771773038923,-239.04610872,0.00017497,2]
[406346430,1771773038933,-500.0,0.00017497,2]
[406346431,1771773038943,-500.0,0.00017497,2]
[406346432,1771773038952,-500.0,0.00017497,2]
[406346433,1771773038962,-500.0,0.00017497,2]
[406346434,1771773038972,-500.0,0.00017497,2]
[406346435,1771773038982,-500.0,0.00017497,2]
[406346436,1771773038991,-500.0,0.00017497,2]
[406346437,1771773039001,-500.0,0.00017497,2]
[406346438,1771773039011,-315.63431139,0.00017497,2]
[406346439,1771773039020,-500.0,0.00017497,2]
[406346440,1771773039030,-469.27382562,0.00017497,2]
[406346441,1771773039039,-32865.5238,0.00017499,2]
[406346442,1771773039049,-1000.0,0.00017499,2]
[406346443,1771773039059,-636.48823945,0.00017573,2]
[406346444,1771773039068,-501.62516482,0.00017573,2]
[406346445,1771773039078,-500.0,0.00017573,2]
[406346446,1771773039087,-500.0,0.00017573,2]
[406346447,1771773039097,-500.0,0.00017598,2]
[406346448,1771773039107,-500.0,0.00017598,2]
[406346449,1771773039116,-500.0,0.00017598,2]
[406346450,1771773039127,-500.0,0.00017598,2]
[406346451,1771773039137,-1000.0,0.00017659,2]
[406346452,1771773039147,-150.0,0.00017665,2]
[406346453,1771773039156,-9999.99,0.00017728,2]
[406346454,1771773039165,-6985.85,0.00017728,2]
[406346455,1771773039176,-150.99,0.00017728,2]
[406346456,1771773039188,-150.99,0.00017728,2]
[406346458,1771773039198,-728.93913117,0.00017808,2]
[406346459,1771773039208,-728.93913117,0.00017808,2]
[406346460,1771773039218,-2000.0,0.00018,2]
[406346461,1771773039227,-2000.0,0.0001801,2]
[406346462,1771773039236,-3354.952367,0.0001802,2]
[406346463,1771773039245,-1000.0,0.000181,2]
[406346464,1771773039255,-500.0,0.00018121,2]
[406346465,1771773039264,-500.0,0.00018121,2]
[406346466,1771773039274,-250.0,0.0001826,2]
[406346467,1771773039283,-600.0,0.0001826,2]
[406346468,1771773039292,-166.7,0.00018279,2]
[406346469,1771773039302,-300.0,0.00018363,2]
[406346470,1771773039311,-1680.0,0.00018709,2]
[406346471,1771773039321,-166.7,0.00019033,2]
[406346473,1771773039331,-1481.78,0.00019178,2]
[406346474,1771773039340,-173.78509278,0.00019566,2]
[406346475,1771773039351,-160.0,0.00019566,2]
[406346476,1771773039360,-3266.93465427,0.00019786,2]
[406346477,1771773039370,-166.7,0.00019787,2]
[406346478,1771773039379,-1000.0,0.00019866,2]
[406346479,1771773039388,-500.0,0.00019882,10]
[406346480,1771773039398,-500.0,0.00019882,10]
[406346481,1771773039408,-500.0,0.00019882,10]
[406346482,1771773039417,-500.0,0.00019882,10]
[406346483,1771773039427,-2000.0,0.0002,2]
[406346484,1771773039436,-2000.0,0.0002001,2]
[406346485,1771773039446,-2000.0,0.0002002,2]
[406346486,1771773039456,-2698.754019,0.0002003,2]
[406346487,1771773039466,-814.754998,0.00020033,7]
[406346488,1771773039475,-1414.24437927,0.00020207,2]
[406346489,1771773039485,-2351.0,0.00020535,2]
[406346490,1771773039494,-166.7,0.00020541,2]
[406346491,1771773039504,-155.14,0.00020548,2]
[406346492,1771773039513,-166.7,0.00021296,2]
[406346493,1771773039522,-1481.78,0.00021308,2]
[406346494,1771773039532,-250.0,0.00021934,2]
[406346496,1771773039541,-667.77696947,0.00021951,2]
[406346498,1771773039551,-204.96,0.00021981,2]
[406346501,1771773039560,-11873.63,0.00022,2]
[406346503,1771773039570,-1000.0,0.00022073,2]
[406346504,1771773039579,-3266.93465427,0.00022175,2]
[406346505,1771773039588,-684.0,0.00022539,2]
[406346506,1771773039597,-155.74,0.000228,7]
[406346508,1771773039607,-1414.24437927,0.00023217,2]
[406346509,1771773039618,-1481.78,0.00023439,2]
[406346510,1771773039628,-1000.0,0.00024281,2]
[406346511,1771773039640,-199.86,0.00024462,2]
[406346512,1771773039651,-3266.93465427,0.00024565,2]
[406346513,1771773039662,-150.0,0.00024658,2]
[406346514,1771773039672,-280.0,0.00024882,10]
[406346515,1771773039682,-966.561926,0.00024938,30]
[406346516,1771773039693,-306.7551253,0.0002494,2]
[406346517,1771773039705,-977.705998,0.00025041,30]
[406346518,1771773039716,-1481.78,0.0002557,120]
[406346519,1771773039727,-150.0,0.0002589,2]
[406346520,1771773039739,-1414.24437927,0.00026226,2]
[406346521,1771773039749,-1000.0,0.00026488,2]
[406346522,1771773039759,-11873.63,0.000265,2]
[406346523,1771773039772,-667.77696947,0.00026605,2]
[406346524,1771773039783,-3266.93465427,0.00026954,2]
[406346525,1771773039793,-2000.0,0.00027,2]
[406346526,1771773039803,-173.78509278,0.00027,3]
[406346527,1771773039812,-2489.679493,0.0002701,2]
[406346528,1771773039821,-150.0,0.00027185,2]
[406346529,1771773039831,-150.0,0.00027369,2]
[406346530,1771773039840,-606.23076923,0.0002737,2]
[406346531,1771773039849,-185.75541114,0.0002737,2]
[406346532,1771773039859,-520.92,0.00027397,2]
[406346533,1771773039868,-180.0,0.00027535,15]
[406346534,1771773039878,-199.86,0.00027938,7]
[406346535,1771773039888,-150.0,0.00028544,2]
[406346536,1771773039898,-495.77856808,0.00028767,2]
[406346537,1771773039908,-1414.24437927,0.00029236,2]
[406346538,1771773039917,-3266.93465427,0.00029343,2]
[406346539,1771773039926,-200.0,0.00029374,2]
[406346540,1771773039936,-500.0,0.00029415,120]
[406346541,1771773039947,-150.0,0.00029971,2]
[406346542,1771773039956,-180.0,0.00030187,23]
[406346543,1771773039965,-436.26,0.00030268,2]
[406346544,1771773039975,-196.33,0.000303,30]
[406346545,1771773039984,-557.34334026,0.00030633,5]
[406346546,1771773039993,-150.0,0.00030633,5]
[406346547,1771773040004,-155.74,0.000307,7]
[406346548,1771773040013,-11873.63,0.000307,2]
[406346549,1771773040022,-1210.0,0.00031133,2]
[406346550,1771773040032,-5977.0,0.00031133,2]
[406346551,1771773040043,-2454.0,0.00031133,2]
[406346552,1771773040053,-250.0,0.00031181,5]
[406346553,1771773040063,-191.24015408,0.00031208,2]
[406346554,1771773040074,-164.43552296,0.00031208,2]
[406346555,1771773040084,-667.77696947,0.00031258,2]
[406346556,1771773040096,-199.86,0.00031414,30]
[406346557,1771773040106,-165.003,0.00031533,2]
[406346558,1771773040115,-1338.0,0.00031533,2]
[406346559,1771773040124,-618.0,0.00031533,2]
[406346560,1771773040135,-372.0,0.00031533,2]
[406346561,1771773040145,-1276.0,0.00031533,2]
[406346563,1771773040154,-266.05548305,0.00031729,5]
[406346565,1771773040164,-3266.93465427,0.00031732,2]
[406346567,1771773040173,-11375.0,0.00031927,5]
[406346569,1771773040182,-1414.24437927,0.00032245,2]
[406346571,1771773040192,-180.0,0.0003284,35]
[406346573,1771773040201,-346.11,0.00032877,2]
[406346575,1771773040210,-500.0,0.00032877,2]
[406346577,1771773040219,-500.0,0.00032877,2]
[406346579,1771773040228,-500.0,0.00032877,2]
[406346581,1771773040237,-500.0,0.00032877,2]
[406346583,1771773040247,-500.0,0.00032877,2]
[406346585,1771773040256,-500.0,0.00032877,2]
[406346587,1771773040265,-372.93950921,0.00032877,2]
[406346589,1771773040274,-2255.311161,0.0003325,60]
[406346597,1771773040433,-814.754998,0.00033388,60]
[406346598,1771773040446,-165.279628,0.00033388,60]
[406346599,1771773040455,-500.0,0.00033941,120]
[406346600,1771773040464,-482.0,0.00034,2]
[406346601,1771773040473,-183.59,0.00034,14]
[406346602,1771773040483,-182.06658955,0.00034096,2]
[406346603,1771773040492,-165.07743367,0.00034096,2]
[406346604,1771773040501,-561.209936,0.000341,18]
[406346605,1771773040510,-3266.93465427,0.00034122,2]
[406346606,1771773040519,-1210.0,0.00034133,2]
[406346607,1771773040529,-2454.0,0.00034133,2]
[406346608,1771773040538,-227.96,0.00034513,2]
[406346609,1771773040547,-618.0,0.00034533,2]
[406346610,1771773040555,-606.469,0.00034533,2]
[406346611,1771773040564,-11873.63,0.000346,2]
[406346612,1771773040573,-210.0,0.00034607,2]
[406346613,1771773040582,-209.0,0.00034749,2]
[406346614,1771773040591,-1500.0,0.00034795,2]
[406346615,1771773040600,-210.0,0.00034818,7]
[406346616,1771773040609,-199.86,0.0003489,30]
[406346617,1771773040618,-1700.0,0.000349,12]
[406346618,1771773040627,-209.0,0.00034914,2]
[406346619,1771773040636,-209.0,0.0003499,7]
[406346620,1771773040645,-209.0,0.0003504,7]
[406346621,1771773040654,-209.0,0.00035239,2]
[406346622,1771773040664,-1414.24437927,0.00035255,2]
[406346623,1771773040673,-1000.0,0.00035318,2]
[406346624,1771773040682,-1000.0,0.00035318,2]
[406346625,1771773040692,-1000.0,0.00035318,2]
[406346626,1771773040705,-1000.0,0.00035318,2]
[406346627,1771773040714,-1000.0,0.00035318,2]
[406346628,1771773040723,-209.0,0.00035401,120]
[406346629,1771773040732,-210.0,0.00035405,2]
[406346630,1771773040743,-180.0,0.00035493,44]
[406346631,1771773040752,-210.0,0.00035585,120]
[406346632,1771773040762,-233.95598063,0.00035589,120]
[406346633,1771773040773,-606.23076923,0.00035589,30]
[406346634,1771773040782,-185.75541114,0.00035589,30]
[406346635,1771773040792,-209.0,0.00035592,2]
[406346636,1771773040802,-155.74,0.000356,14]
[406346637,1771773040813,-200.34190714,0.00035616,7]
[406346638,1771773040823,-209.0,0.00035666,2]
[406346639,1771773040832,-209.0,0.00035671,7]
[406346640,1771773040841,-210.0,0.00035713,2]
[406346641,1771773040851,-209.0,0.00035766,2]
[406346642,1771773040859,-667.77696947,0.00035911,2]
[406346643,1771773040868,-212.0,0.00036087,7]
[406346644,1771773040877,-175.96,0.00036153,2]
[406346645,1771773040886,-251.31917633,0.00036233,5]
[406346646,1771773040895,-210.0,0.00036284,2]
[406346647,1771773040904,-209.0,0.00036342,2]
[406346648,1771773040913,-209.0,0.00036491,2]
[406346649,1771773040923,-3266.93465427,0.00036511,2]
[406346650,1771773040932,-209.0,0.00036794,2]
[406346651,1771773040941,-482.0,0.000369,2]
[406346652,1771773040950,-505.13,0.00037,120]
[406346653,1771773040959,-212.0,0.00037053,2]
[406346654,1771773040969,-209.0,0.00037055,2]
[406346655,1771773040978,-46378.60342108,0.00037096,7]
[406346656,1771773040987,-9268.64695862,0.00037096,7]
[406346657,1771773040996,-154.48353086,0.00037096,2]
[406346658,1771773041006,-1209.0,0.00037133,2]
[406346659,1771773041014,-2286.608,0.00037133,2]
[406346660,1771773041023,-209.0,0.00037133,2]
[406346661,1771773041032,-413.5,0.00037176,30]
[406346662,1771773041041,-479.0,0.00037176,30]
[406346663,1771773041050,-175.94,0.00037484,2]
[406346664,1771773041059,-212.0,0.00037508,120]
[406346665,1771773041068,-618.0,0.00037533,2]
[406346666,1771773041077,-173.78509278,0.00038,7]
[406346667,1771773041087,-209.0,0.00038002,2]
[406346668,1771773041096,-330.3753145,0.00038016,5]
[406346669,1771773041105,-164.41,0.00038065,2]
[406346670,1771773041115,-1414.24437927,0.00038264,2]
[406346671,1771773041124,-199.86,0.00038366,60]
[406346672,1771773041133,-500.0,0.00038466,120]
[406346673,1771773041142,-17660.15652026,0.00038646,3]
[406346674,1771773041151,-3266.93465427,0.000389,2]
[406346675,1771773041160,-173.78509278,0.00039,3]